Cogmind - Beta 16 @@@ ROGUE MODE // 2026.01.11 @ 12:46:10 Player: AnotherZach Result: Destroyed by HF-HCN(R) with Subdweller Laser Performance ------------- Evolutions (0) 0 Regions Visited (3) 600 Robots Destroyed (23) 115 Value Destroyed (659) 659 Prototype IDs (0) 0 Alien Tech Used (0) 0 Bonus (0) 0 TOTAL SCORE: 1374 Bonus ------- None Cogmind --------- Core Integrity 0/250 Matter 300/300 Energy 100/100 System Corruption 0% Temperature Cool (6) Movement Flying (120) Ox1 Location -10/Subcaves Parts ------- > --- POWER (1) -------- (None) > --- PROPULSION (2) --- Flight Unit > --- UTILITY (2) ------ Small Storage Unit Structural Scanner > --- WEAPON (2) ------- (None) > --- INVENTORY (8) ---- Light Ion Engine Wheel Flight Unit Huge Storage Unit High-capacity Matter Pod (200) Improved Terrain Scanner Targeting Computer Grenade Launcher Peak State ------------ > --- POWER ------------ Light Nuclear Core > --- PROPULSION ------- Aluminum Leg Aluminum Leg > --- UTILITY ---------- Improved Heat Sink Small Storage Unit > --- WEAPON ----------- Particle Gun Particle Gun > --- INVENTORY -------- Aluminum Leg Wheel Huge Storage Unit High-capacity Matter Pod Improved Terrain Scanner Targeting Computer Light Cannon Grenade Launcher [Rating: 14] Favorites ----------- Power Light Nuclear Core Engine Ion Engine Power Core Light Nuclear Core Propulsion Light Treads Treads Light Treads Leg Aluminum Leg Wheel Compact Wheel Flight Unit Flight Unit Utility Small Storage Unit Device Heat Sink Storage Small Storage Unit Processor Targeting Computer Weapon Particle Gun Energy Gun Particle Gun Ballistic Cannon Light Cannon Launcher Grenade Launcher Build | -11 -10 -10 -10 ------- Run | Yrd Mat Min Sub Slots Evolved . | . . . . Power . | . . . . Propulsion . | . . . . Utility . | . . . . Weapon . | . . . . Parts Attached 26 | 7 7 12 . Power 4 | 1 1 2 . Engine 3 | 1 1 1 . Core 1 | . . 1 . Reactor . | . . . . Propulsion 9 | 2 2 5 . Treads 2 | . 2 . . Leg 3 | . . 3 . Wheel 2 | 2 . . . Hover . | . . . . Flight 2 | . . 2 . Utility 6 | 2 2 2 . Device 4 | 1 1 2 . Storage 1 | 1 . . . Processor 1 | . 1 . . Hackware . | . . . . Protection . | . . . . Artifact . | . . . . Weapon 7 | 2 2 3 . Energy Gun 5 | 2 1 2 . Energy Cannon . | . . . . Ballistic Gun . | . . . . Ballistic Cannon 1 | . 1 . . Launcher 1 | . . 1 . Special Weapon . | . . . . Impact Weapon . | . . . . Slashing Weapon . | . . . . Piercing Weapon . | . . . . Special Melee Weapon . | . . . . Unidentified Prototypes . | . . . . Parts Lost 9 | . 3 5 1 Power 2 | . 1 1 . Propulsion 5 | . 2 2 1 Utility . | . . . . Weapon 2 | . . 2 . Highest Loss Streak 3 | . 3 3 1 To Critical Strikes . | . . . . Average Backups 6 | 1 6 7 8 Power . | . . . 1 Propulsion 1 | 1 1 1 2 Utility 3 | . 3 4 4 Weapon 1 | . . 1 1 Tool/Special . | . . . . Unused Backups 9 | . 2 2 5 Power . | . . . . Propulsion 3 | . 1 . 2 Utility 5 | . 1 1 3 Weapon 1 | . . 1 . Tool/Special . | . . . . Average Slot Usage (%) 96 | . 98 97 57 Engine 7 | . 13 1 . Core 5 | . . 11 . Treads 12 | . 21 3 . Leg 11 | . . 22 . Wheel 3 | . 6 . . Flight 1 | . . 1 28 Device 13 | . 12 13 14 Storage 14 | . 14 14 14 Energy Gun 20 | . 19 22 . Ballistic Cannon 6 | . 8 4 . Peak Build Rating 14 | 9 9 14 5 Average Rating 9 | 5 8 12 4 On Entrance 5 | . 9 9 5 Avg Prop Armor Cover (%) . | . . . . Naked Turns . | . . . . Heaviest Build 17 | 12 17 17 6 Greatest Support 40 | 32 40 40 8 Greatest Overweight (x) 2 | . . 2 . Average Overweight (x) . | . . . . Largest Inventory Capacity 8 | 8 8 8 8 Average Capacity 7 | 7 8 8 8 Most Carried 8 | 4 8 8 8 Average Carried 6 | 1 6 7 8 Final Capacity 8 | 8 8 8 8 Final Carried 8 | 4 8 8 8 Class Distribution -------------------- 61% | Mutant 38% | Scavenger-Mutant Dominant Class ---------------- Mutant | -10/Materials Scavenger-Mutant | -10/Mines Mutant | -10/Subcaves Resources | -11 -10 -10 -10 ----------- Run | Yrd Mat Min Sub Matter Collected 850 | 190 367 293 . Remotely . | . . . . Salvage Created 933 | 120 467 346 . Parts 43 | 2 25 16 . Haulers Intercepted . | . . . . Recyclers Shooed 1 | . 1 . . Parts Field Recycled . | . . . . Retrieved Matter . | . . . . Parts Self-Destructed . | . . . . Prevented . | . . . . Parts Restored . | . . . . Kills | -11 -10 -10 -10 ------- Run | Yrd Mat Min Sub Combat Hostiles Destroyed 20 | . 8 12 . Guns 9 | . 4 5 . Cannons 8 | . 3 5 . AOE 2 | . . 2 . Classes Destroyed 6 | 2 3 1 . Worker 1 | . 1 . . Tunneler 1 | 1 . . . Recycler 4 | 1 2 1 . Watcher 2 | . 2 . . Grunt 15 | . 8 7 . Assembled 5 | . . 5 . Best Kill Streak 3 | 2 3 3 . Combat Bots Only 3 | . 3 3 . Max Kills in Single Turn 1 | 1 1 1 . Gunslinging . | . . . . Exploded 1 | . . 1 . Melee . | . . . . Uniques/NPCs Destroyed . | . . . . Combat | -11 -10 -10 -10 -------- Run | Yrd Mat Min Sub Hostile Shots Fired 115 | . 61 51 3 Missed 22 | . 10 11 1 Hits 93 | . 51 40 2 Melee 4 | . . 4 . Projectile 89 | . 51 36 2 Critical Strikes 2 | . . 2 . Damage Taken 1279 | . 581 659 39 Core 255 | . 133 103 19 Absorbed by Shields . | . . . . Core Remaining (%) 100 | 100 . . . Volleys Fired 81 | 7 43 31 . Largest 2 | 2 2 2 . Hottest 130 | 90 115 130 . Shots Fired 154 | 13 80 61 . Gun 111 | 13 61 37 . Cannon 40 | . 19 21 . Launcher 3 | . . 3 . Special . | . . . . Kinetic 40 | . 19 21 . Thermal 111 | 13 61 37 . Explosive 3 | . . 3 . Electromagnetic . | . . . . Robot Hit Streak 16 | 4 16 8 . Robot Miss Streak 4 | 1 4 3 . Penetration Max . | . . . . Secondary Targets . | . . . . Shots Hit Robots 103 | 10 55 38 . Core Hits 43 | 2 18 23 . Critical Kills . | . . . . Critical Parts Destroyed . | . . . . Critical Strikes 4 | 1 1 2 . Burn 3 | 1 . 2 . Blast 1 | . 1 . . Melee Attacks . | . . . . Impact . | . . . . Slashing . | . . . . Piercing . | . . . . Sneak Attacks . | . . . . Combat Hostiles . | . . . . Follow-up Attacks . | . . . . Damage Inflicted 1695 | 115 805 775 . Guns 1073 | 115 529 429 . Cannons 473 | . 268 205 . Explosions 141 | . . 141 . Melee . | . . . . Ramming 8 | . 8 . . Kinetic 473 | . 268 205 . Thermal 1073 | 115 529 429 . Explosive 141 | . . 141 . Electromagnetic . | . . . . Impact . | . . . . Slashing . | . . . . Piercing . | . . . . Highest Corruption . | . . . . Average Corruption . | . . . . Corruption Purged . | . . . . Corruption Blocked . | . . . . Overload Shots . | . . . . Overflow Damage 1 | . . 1 . Projectiles . | . . . . Explosions 1 | . . 1 . Melee . | . . . . Knockbacks 8 | . 2 6 . Impact . | . . . . Kinetic 8 | . 2 6 . Secondary . | . . . . Self-Inflicted Damage 29 | . . 29 . Shots 2 | . . 2 . Rammed 1 | . 1 . . Targets Rammed 1 | . 1 . . Kicked . | . . . . Crushed . | . . . . Highest Temperature 502 | 160 502 132 . Average Temperature 109 | 76 147 48 . Received Heat Transfer 480 | . 321 147 12 Effects 7 | . 7 . . Shutdowns 2 | . 2 . . Energy Bleed 1 | . 1 . . Interference 3 | . 3 . . Short Circuit 1 | . 1 . . Siege Activations . | . . . . Martial Activations . | . . . . Shielding Activations . | . . . . Robots Disrupted . | . . . . Combat Hostiles . | . . . . Robots Corrupted . | . . . . Combat Hostiles . | . . . . Parts Fried . | . . . . Impact Corruptions . | . . . . Robots Melted 2 | 1 1 . . Combat Hostiles 1 | . 1 . . Parts Melted . | . . . . Heat Transferred 2832 | 384 1301 1147 . Parts Sabotaged . | . . . . Parts Stolen . | . . . . Parts Stripped . | . . . . Power Chain Reactions . | . . . . Alert | -11 -10 -10 -10 ------- Run | Yrd Mat Min Sub Maximum Alert Level . | . . . . Low Security (%) 100 | 100 100 100 . Level 1 . | . . . . Level 2 . | . . . . Level 3 . | . . . . Level 4 . | . . . . Level 5 . | . . . . High Security . | . . . . Max Security . | . . . . Peak Influence 125 | 5 74 125 . Initial 10 | . 3 10 . Average 36 | 1 34 42 . Influence Increases 545 | 10 279 256 . Destroy 0b10 Robot/C 300 | . 160 140 . Destroy 0b10 Robot/NC 40 | 10 25 5 . Destroy Leader 74 | . 34 40 . Select Force Hacks 30 | . 30 . . Disable Machine 30 | . 30 . . Destroy Structure 11 | . . 11 . Partial Spotted 15 | . . 15 . Lose Combat Pursuer 45 | . . 45 . Influence Decreases 545 | 5 255 245 40 Entered New Map 42 | . 2 19 21 Time Decay 444 | 5 223 206 10 Lost Part 59 | . 30 20 9 Squads Dispatched 2 | . 2 . . Investigation 2 | . 2 . . Extermination . | . . . . Reinforcement . | . . . . Assault . | . . . . Garrison . | . . . . Intercept . | . . . . Searches Triggered . | . . . . Construction Impeded . | . . . . Haulers Reinforced . | . . . . Active Scanning Responses . | . . . . Cargo Convoy Interrupts . | . . . . Stealth | -11 -10 -10 -10 --------- Run | Yrd Mat Min Sub Distress Signals 1 | . . 1 . Communications Jammed . | . . . . Distress Signals . | . . . . Times Spotted 35 | . 12 21 2 Peak Tracking Total 4 | . 4 4 2 Tactical Retreats 4 | . . 4 . Traps | -11 -10 -10 -10 ------- Run | Yrd Mat Min Sub Traps Triggered 1 | . 1 . . Indirectly . | . . . . Trap Hack Attempts . | . . . . Triggered . | . . . . Disarmed . | . . . . Reprogrammed . | . . . . Reused . | . . . . Traps Extracted . | . . . . Installed . | . . . . Triggered . | . . . . Machines | -11 -10 -10 -10 ---------- Run | Yrd Mat Min Sub Machines Disabled 2 | . 2 . . Max in Single Turn 1 | . 1 . . Machines Repaired . | . . . . Machines Dismantled . | . . . . Machines Sabotaged . | . . . . Overloaded Fab Kills . | . . . . Hacking | -11 -10 -10 -10 --------- Run | Yrd Mat Min Sub Machines Accessed 3 | . 3 . . Terminals 2 | . 2 . . Fabricators . | . . . . Repair Stations . | . . . . Recycling Units 1 | . 1 . . Scanalyzers . | . . . . Garrison Access . | . . . . Total Hacks 6 | . 6 . . Successful 2 | . 2 . . Failed 4 | . 4 . . Catastrophic . | . . . . Database Lockouts . | . . . . Manual 3 | . 3 . . Terminals 4 | . 4 . . Fabricators . | . . . . Repair Stations . | . . . . Recycling Units 2 | . 2 . . Scanalyzers . | . . . . Garrison Access . | . . . . Terminal Hacks . | . . . . Fabricator Hacks . | . . . . Repair Station Hacks . | . . . . Recycling Unit Hacks 1 | . 1 . . Retrieve Components 1 | . 1 . . Scanalyzer . | . . . . Garrison Access Hacks . | . . . . Unauthorized Hacks 1 | . 1 . . Terminals . | . . . . Fabricators . | . . . . Repair Stations . | . . . . Recycling Units 1 | . 1 . . Tunnel 1 | . 1 . . Scanalyzers . | . . . . Garrison Access . | . . . . Data Cores Recovered . | . . . . Used . | . . . . Hacking Detections 2 | . 2 . . Full Trace Events . | . . . . Feedback Events . | . . . . Feedback Blocked . | . . . . Robot Schematics Acquired . | . . . . Robots Built . | . . . . Authchips . | . . . . Time . | . . . . Total Robot Build Rating . | . . . . Part Schematics Acquired . | . . . . Parts Built . | . . . . Authchips . | . . . . Time . | . . . . Total Part Build Rating . | . . . . Part Studies Acquired . | . . . . Parts Repaired . | . . . . Time . | . . . . Parts Recycled . | . . . . Recycled Matter . | . . . . Retrieved Matter . | . . . . Retrieved Components 9 | . 9 . . Parts Scanalyzed . | . . . . Part Schematics Acquired . | . . . . Parts Damaged . | . . . . Bothacking | -11 -10 -10 -10 ------------ Run | Yrd Mat Min Sub Used RIF Installer . | . . . . Robots Hacked . | . . . . Non-combat . | . . . . Combat . | . . . . Robot Hacks Applied . | . . . . Relay Couplers Released . | . . . . Fabnet Peak Effective % . | . . . . Robots Rewired . | . . . . Allies Hacked . | . . . . Hacks Repelled . | . . . . Allies | -11 -10 -10 -10 -------- Run | Yrd Mat Min Sub Total Allies . | . . . . Largest Group . | . . . . Highest-Rated Group . | . . . . Highest-Rated Ally . | . . . . Total Orders . | . . . . Ally Attacks . | . . . . Total Damage . | . . . . Kills . | . . . . Allies Corrupted . | . . . . Allies Melted . | . . . . Intel | -11 -10 -10 -10 ------- Run | Yrd Mat Min Sub Active Infowar (turns) 125 | 5 78 18 24 Terrain 83 | 5 78 . . Structural 42 | . . 18 24 Robot Analysis Total . | . . . . Derelict Logs Recovered 2 | . . 2 . Drone Launches . | . . . . Drone Recoveries . | . . . . Exploration | -11 -10 -10 -10 ------------- Run | Yrd Mat Min Sub Turns Passed 1277 | 71 596 586 24 Spaces Moved 726 | 38 300 368 20 Core 2 | 1 . 1 . Treads 251 | . 228 23 . Legs 311 | . . 311 . Wheels 109 | 37 72 . . Hover . | . . . . Flight 53 | . . 33 20 Fastest Speed 37 | 50 100 37 37 Average Speed 124 | 98 145 115 37 Slowest Speed 190 | 100 160 190 37 Overloaded Moves . | . . . . Propulsion Burnouts . | . . . . Robots Hopped . | . . . . Potential Cave-ins . | . . . . Cave-ins Triggered . | . . . . Exploration Rate (%) 27 | 5 52 49 3 Regions Visited 3 Branch Regions 2 Pre-discovered Areas 2 | . 1 1 . Known Exits Taken . | . . . . Unknown Exits Taken 3 | 1 1 1 . Scrap Searched . | . . . . Spaces Dug . | . . . . Terrain Destroyed 26 | . . 26 . Melee . | . . . . Projectile . | . . . . AOE 26 | . . 26 . Terrain Rammed . | . . . . Walls Destroyed . | . . . . Machines Disabled . | . . . . Actions | -11 -10 -10 -10 --------- Run | Yrd Mat Min Sub Total 940 | 55 380 469 36 Wait 69 | . 12 41 16 Move 723 | 37 299 367 20 Hop . | . . . . Pick Up 17 | 4 10 3 . Fast Attach 17 | 7 4 6 . Attach 7 | . 4 3 . Detach 2 | . . 2 . Swap 5 | . . 5 . Drop 18 | . 7 11 . Fire 81 | 7 43 31 . Melee . | . . . . Ram . | . . . . Kick . | . . . . Crush 1 | . 1 . . Escape Stasis . | . . . . Rewire . | . . . . Trap . | . . . . Miscellaneous . | . . . . Route ------- -11/Scrapyard -10/Materials (discovered 4 exits: [*Mat x2] / [*Min] / [*Sub]) -10/Mines -10/Subcaves History --------- Turn | Location | Event 5 | -11/Scrapyard | Discovered new exit (range 15) 72 | -11/Scrapyard | Entered Materials 259 | -10/Materials | Lost 3 parts (1p2n) 309 | -10/Materials | Build established: Mutant 375 | -10/Materials | Discovered new exit (range 3) 435 | -10/Materials | Discovered new exit (range 9) 541 | -10/Materials | Discovered new exit (range 14) 582 | -10/Materials | Core integrity fell below 50% 617 | -10/Materials | Discovered new exit (range 11) 668 | -10/Materials | Entered Mines 771 | -10/Mines | Assembled infested the area 773 | -10/Mines | Learned Materials security intel 924 | -10/Mines | Learned location of Zion (-7) 1019 | -10/Mines | Build established: Scavenger-Mutant 1104 | -10/Mines | Core integrity fell below 20% 1248 | -10/Mines | Discovered new exit (range 15) 1250 | -10/Mines | Lost 3 parts (1p1n1w) 1254 | -10/Mines | Entered Subcaves 1255 | -10/Subcaves | Approached by a straggling Scientist 1259 | -10/Subcaves | Ambushed by Subdwellers from Twisted Machinery 1278 | -10/Subcaves | Destroyed by HF-HCN(R) with Subdweller Laser Last Messages --------------- 01233_ Acquired Lgt. Ion Engine. 01236_ Acquired 15 matter. 01236_ Acquired Structural Scanner. 01239_ Acquired Flight Unit. 01241_ Acquired 65 matter. 01248_ EXIT=FOUND LOCATION=UNKNOWN AMBIENT_HEAT=-10 GOAL=ESCAPE 01255_ SJ-YG8(c): "Thank the algorithms! I was beginning to lose hope I'd never make it past all the Subs lurking out here." 01258_ SJ-YG8(c): "Hey, let me tag along and I can get us both out of this nasty situation. At least I think I can... The group I got separated from was talking about a shortcut back to the UFD." 01259_ HF-HCN(R) emerges from the Twisted Machinery. 01274_ Flight Unit destroyed. Map ----- +----------------------------------------------------+ | ?????????????????????????????????????? | | ?????????????????????????????????????? | | ?????????????????????????????????????? | | ?????????????????????????????????????? | | ??????????????######?????????????????? | | ??????????????#############??????????? | | ??????????????## #########?????????? | | ??????????????### ####????????? | | ???????????????## #### ??????? | | ??????????????????? "###"??????? | | ???????????????????## " """"?????? | | ???????????????????### " ##??????? | | ???????????????????### ##" ##??????? | | ???????????????????### ""####?????? | | ???????????????????## # ######???? | | ??????????????######## ####???? | | ?????????????######## """" ###??? | | ???????????##### ##### " " ##??? | | ??????????##### #### " " ?? | | ??????????### ## # """" ? | | ??????????## # ? | | ???????????? # # ? | | ???????????? # # # ## ? | | ??????????? ## #### # ######?? ? | | ???????????X###R #### #######??????? | | ???????????##@R ####?????????? | | ???????????#### ##???????????? | | ???????????###### ## ##???????????? | | ?????????????######### ###??????????? | | ????????????????###### ##??????????? | | ?????????????????????? ###???????? | | ?????????????????????? ##???????? | | ?????????????????????# ? ##???????? | | ?????????????????????## ##???????? | | ?????????????????????## ??????????? | | ???????????????????????? ????????????? | | ?????????????????????????????????????? | | ?????????????????????????????????????? | | ?????????????????????????????????????? | | ?????????????????????????????????????? | | ?????????????????????????????????????? | | ?????????????????????????????????????? | | ?????????????????????????????????????? | | ?????????????????????????????????????? | | ?????????????????????????????????????? | | ?????????????????????????????????????? | | ?????????????????????????????????????? | | ?????????????????????????????????????? | | ?????????????????????????????????????? | | ?????????????????????????????????????? | +----------------------------------------------------+ Best States ------------- Heat Dissipation 39 Energy Generation 14 Energy Capacity 250 Matter Stores 300 Matter Capacity 300 Sight Range 16 Terrain Scan Range 16 Terrain Scan Density 10 Evasion (%) 62 Targeting Accuracy 5 Recoil Reduction 2 Item Schematics ----------------- None Robot Schematics ------------------ None Fabricated ------------ Nothing Repaired ---------- Nothing Studied --------- None Alien Tech Used ----------------- None Achievements -------------- None Challenges ------------ None Game ------ Seed RefineryMetamassRifle Manual? 0 Play Time 00:09:50 Cumulative 769.9 hours Start 2026.01.11 @ 12:36:35 End 2026.01.11 @ 12:46:10 Sessions 1 Manual Loads 0 Difficulty Rogue Special Mode None Game No. 189 Rogue 51 Adventurer 138 Explorer 0 Win Type - Total 11 Types 7/0/1/2/0/0/0/0/1/0 Lore% 79 Gallery% 78 Achievement% 56 Wizard Run 0 Options --------- Layout 2 ASCII 0 Keyboard 0 Movement Mouse Keybinds 0 Fullscreen 1 Font 24/Smallcaps Map View 50x49 Zoom Use 0% Tactical HUD 1 Map Filters NONE Filters NONE Steam 1 RUN: c58dc998-e2bf-4361-93c8-bbea50ab4e62